bitfinex/quotes_SOLUSD_20241117
["timestamp","ask_amount","ask_price","bid_price","bid_amount"]
[1731815535341,4.5653,219.04,218.97,23.99835632]
[1731815536371,4.565,219.06,218.99,23.99835632]
[1731815536886,23.99835632,219.07,218.99,23.99835632]
[1731815537675,23.99835632,219.07,218.99,28.56455632]
[1731815538750,23.99835632,219.07,218.99,39.98055632]
[1731815540165,23.99835632,219.09,219.01,23.99835632]
[1731815540369,28.56225632,219.11,219.03,23.99835632]
[1731815540790,19.56193019,219.11,219.03,14.99803019]
[1731815541078,19.56193019,219.11,219.03,14.93778019]
[1731815541458,19.56193019,219.11,219.03,19.50308019]
[1731815543788,14.99803019,219.11,219.03,30.91698019]
[1731815545083,14.99803019,219.11,219.04,14.99803019]
[1731815545992,4.5637,219.12,219.04,14.99803019]
[1731815546166,14.99803019,219.08,219.01,14.99803019]
[1731815546683,19.56233019,219.09,219.01,19.56383019]
[1731815546860,14.99803019,219.09,219.01,30.97883019]
[1731815547063,19.56243019,219.09,219.01,30.97883019]
[1731815547262,19.56243019,219.09,219.01,15.9808]
[1731815547573,14.99803019,219.07,219.01,15.9808]
[1731815548165,14.23723768,219.13,219.04,14.99803019]
[1731815548368,14.99803019,219.12,219.02,0.12549]
[1731815548581,14.99803019,219.12,219.03,14.99803019]
[1731815548972,14.99803019,219.12,219.01,22.83]
[1731815548973,14.99803019,219.1,219.04,15.9787]
[1731815549499,14.99803019,219.1,219.02,4.5656]
[1731815549970,14.99803019,219.08,219.02,4.5656]
[1731815553190,19.56253019,219.08,219.01,14.99803019]
[1731815553359,33.79976787,219.08,219.01,14.99803019]
[1731815553564,17.39338692,219.07,219.01,14.99803019]
[1731815553783,14.23723768,219.07,219.01,19.56393019]
[1731815553986,33.79976787,219.08,219.01,19.56393019]
[1731815554289,29.23526787,219.08,219.01,30.97893019]
[1731815554985,14.99803019,219.08,219.01,30.97893019]
[1731815555468,29.23526787,219.08,219.01,30.97893019]
[1731815556379,14.99803019,219.08,219.01,30.97893019]
[1731815556583,14.23723768,219.09,219.01,30.97893019]
[1731815556890,29.23526787,219.1,219.03,14.99803019]
[1731815557268,14.23723768,219.1,219.04,15.9787]
[1731815558171,32.39199721,219.1,219.04,15.9787]
[1731815558376,32.39199721,219.1,218.98,22.8329]
[1731815558377,14.99803019,219.08,219.02,4.5656]
[1731815558572,29.23526787,219.08,219.02,4.5656]
[1731815559410,29.23526787,219.08,219.0,11.4154]
[1731815559575,14.99803019,219.08,219.0,15.9816]
[1731815560095,14.23723768,219.09,219.03,14.99803019]
[1731815560510,32.39196075,219.09,219.01,14.99803019]
[1731815560681,29.23526787,219.09,219.01,14.99803019]
[1731815561396,14.99803019,219.09,219.01,14.99803019]
[1731815561696,14.99803019,219.09,219.02,15.9801]
[1731815561999,19.56253019,219.09,219.02,15.9801]
[1731815562176,14.99803019,219.07,219.02,11.4144]
[1731815564897,19.56273019,219.07,219.02,11.4144]
[1731815565284,14.99803019,219.07,219.02,11.4144]
[1731815565601,33.79976787,219.09,219.02,11.4144]
[1731815567695,14.23723768,219.08,219.02,15.9801]
[1731815567989,14.23723768,219.08,219.02,11.4144]
[1731815567990,4.5645,219.08,219.02,11.4144]
[1731815568199,14.99803019,219.07,218.99,14.99803019]
[1731815568501,14.99803019,219.07,218.99,19.56423019]
[1731815568703,29.23526787,219.07,218.99,19.56423019]
[1731815569380,4.5649,219.06,218.99,19.56423019]
[1731815569584,4.5649,219.06,218.86,3.42257217]
[1731815569585,14.99803019,219.03,218.94,11.4185]
[1731815569920,14.23723768,219.01,218.95,19.56513019]
[1731815570271,14.23723768,219.01,218.96,14.99803019]
[1731815570504,14.23723768,219.02,218.96,14.99803019]
[1731815570678,17.39612781,219.02,218.96,14.99803019]
[1731815571196,21.96202781,219.02,218.96,14.99803019]
[1731815571400,14.23723768,219.03,218.99,14.99803019]
[1731815571601,14.23723768,219.05,218.99,14.99803019]
[1731815571799,14.23723768,219.06,219.01,14.99803019]
[1731815572090,17.39510667,219.06,219.01,14.99803019]
[1731815572300,14.23723768,219.06,219.0,14.99803019]
[1731815572476,17.39515338,219.06,219.0,14.99803019]
[1731815572674,14.23723768,219.06,219.03,14.99803019]
[1731815572873,14.23723768,219.08,219.03,14.99803019]
[1731815573102,17.39489552,219.08,219.03,14.99803019]
[1731815573298,17.39489552,219.08,219.02,14.99803019]
[1731815573593,14.23723768,219.08,219.02,14.99803019]
[1731815573799,14.99803019,219.07,218.94,0.12549]
[1731815574005,14.99803019,219.06,218.98,14.99803019]
[1731815574199,14.99803019,219.06,218.99,14.99803019]
[1731815574200,29.23526787,219.06,218.99,14.99803019]
[1731815574391,14.23723768,219.05,218.99,14.99803019]
[1731815574590,14.23723768,219.05,218.93,15.9867]
[1731815574779,14.23723768,219.04,218.97,14.99803019]
[1731815574981,48.03760556,219.06,218.99,14.99803019]
[1731815574982,14.23723768,219.05,218.99,14.99803019]
[1731815575177,14.99803019,219.04,218.93,15.9867]
[1731815575386,29.23526787,219.02,218.95,14.99803019]
[1731815575596,29.23526787,219.02,218.93,15.9867]
[1731815575797,29.23526787,219.01,218.93,30.98473019]
[1731815576079,14.99803019,219.0,218.93,15.9867]
[1731815576277,29.23526787,219.0,218.93,11.4191]
[1731815576912,14.23723768,219.0,218.93,14.99803019]
[1731815577283,33.80156787,219.0,218.93,14.99803019]
[1731815578586,18.80353768,219.0,218.93,14.99803019]
[1731815578983,14.23723768,219.0,218.94,14.99803019]
[1731815579295,14.23723768,219.01,218.97,14.99803019]
[1731815579491,14.23723768,219.02,218.97,14.99803019]
[1731815579699,17.39488945,219.02,218.97,14.99803019]
[1731815579998,14.23723768,219.02,218.97,14.99803019]
[1731815580485,17.39486632,219.02,218.96,4.5668]
[1731815580684,42.71171305,219.03,218.97,14.99803019]
[1731815580892,14.23723768,219.03,218.97,14.99803019]
[1731815581493,14.23723768,219.03,218.93,30.98463019]
[1731815581494,29.23526787,219.01,218.93,30.98463019]
[1731815581802,14.23723768,219.0,218.93,30.98463019]
[1731815582385,29.23526787,219.01,218.93,30.98463019]
[1731815582994,29.23526787,219.01,218.93,26.41713019]
[1731815583194,17.39426571,219.0,218.93,26.41713019]
[1731815583410,29.23526787,219.01,218.93,30.98473019]
[1731815583706,14.23723768,219.01,218.95,14.99803019]
[1731815583889,14.23723768,219.02,218.95,14.99803019]
[1731815584086,17.39356625,219.02,218.95,19.56513019]
[1731815584293,14.23723768,219.02,218.95,19.56513019]
[1731815584499,21.95911367,219.02,218.93,26.41713019]
[1731815584786,29.23526787,219.01,218.93,30.98473019]
[1731815586312,33.80126787,219.01,218.93,30.98473019]
[1731815587503,29.23526787,219.01,218.93,30.98473019]
[1731815587694,14.23723768,219.02,218.95,14.99803019]
[1731815587893,33.80076787,219.03,218.95,14.99803019]
[1731815588812,33.80076787,219.03,218.95,19.56503019]
[1731815589711,29.23526787,219.03,218.95,30.98313019]
[1731815589888,28.47447537,219.04,218.97,14.99803019]
[1731815589889,14.23723768,219.04,218.97,14.99803019]
[1731815590091,33.80056787,219.05,218.97,14.99803019]
[1731815590298,18.80253768,219.05,218.99,14.99803019]
[1731815590500,19.56333019,219.05,218.97,14.99803019]
[1731815590700,33.80056787,219.05,218.98,4.5666]
[1731815591714,19.56333019,219.05,218.98,4.5666]
[1731815591913,14.23723768,219.06,218.99,14.99803019]
[1731815592209,29.23526787,219.08,218.99,14.99803019]
[1731815592616,14.23723768,219.08,218.99,14.99803019]
[1731815592918,14.23723768,219.08,219.01,14.99803019]
[1731815593215,33.79966787,219.09,219.01,19.56383019]
[1731815593393,14.23723768,219.1,219.04,14.99803019]
[1731815593591,18.80143768,219.1,219.03,14.99803019]
[1731815594497,18.80143768,219.1,219.03,19.56343019]
[1731815594692,14.23723768,219.1,219.04,14.99803019]
[1731815596313,33.79916787,219.11,219.04,19.56333019]
[1731815597706,29.23526787,219.11,219.04,30.97673019]
[1731815598014,14.99803019,219.11,219.04,30.97673019]
[1731815598916,23.83533699,219.11,219.04,25.57679931]
[1731815599122,9.59809931,219.1,219.03,9.59809931]
[1731815599516,14.23723768,219.11,219.04,9.59809931]
[1731815599717,9.59809931,219.11,219.04,9.59809931]
[1731815599923,9.59809931,219.1,219.03,9.59809931]
[1731815600221,18.80093768,219.12,219.03,9.59809931]
[1731815600222,18.80093768,219.12,219.04,4.5653]
[1731815600413,9.59809931,219.1,219.04,4.5653]
[1731815601429,9.59809931,219.11,219.04,9.59809931]
[1731815601816,14.23723768,219.12,219.05,9.59809931]
[1731815602021,9.59809931,219.12,219.05,9.59809931]
[1731815602215,14.16179931,219.12,219.05,9.59809931]
[1731815603234,14.16179931,219.12,219.05,14.16319931]
[1731815603933,4.5637,219.12,219.05,14.16319931]
[1731815604149,14.16179931,219.12,219.05,14.16319931]
[1731815604819,9.59809931,219.11,219.04,9.59809931]
[1731815606410,9.59809931,219.11,219.05,4.5651]
[1731815607712,9.59809931,219.09,219.03,11.4135]
[1731815607935,9.59809931,219.07,219.03,11.4135]
[1731815608240,9.59809931,219.07,219.01,4.5658]
[1731815608426,14.16279931,219.07,219.01,4.5658]
[1731815608730,9.59809931,219.07,219.01,4.5658]
[1731815609309,4.5645,219.09,219.01,4.5658]
[1731815609310,9.59809931,219.08,219.01,25.57889931]
[1731815609527,14.16259931,219.09,219.03,9.59809931]
[1731815611221,14.16259931,219.09,219.02,14.16369931]
[1731815611423,14.23723768,219.12,219.04,9.59809931]
[1731815611424,14.16219931,219.11,219.04,9.59809931]
[1731815611731,4.5641,219.11,219.05,9.59809931]
[1731815612122,4.5636,219.13,219.07,9.59809931]
[1731815612433,14.16169931,219.13,219.05,9.59809931]
[1731815613021,14.16169931,219.13,219.05,14.16299931]
[1731815613216,9.59809931,219.12,219.05,14.16299931]
[1731815613623,9.59809931,219.12,219.05,4.5649]
[1731815614039,9.59809931,219.11,219.02,11.4144]
[1731815614354,14.16179931,219.12,219.04,9.59809931]
[1731815614848,9.59809931,219.11,219.03,9.59809931]
[1731815615431,9.59809931,219.1,219.03,9.59809931]
[1731815615740,9.59809931,219.11,219.03,9.59809931]
[1731815615941,9.59809931,219.12,219.05,9.59809931]
[1731815616141,18.80063768,219.14,219.05,9.59809931]
[1731815616326,9.59809931,219.12,219.05,9.59809931]
[1731815616939,4.5634,219.14,219.05,9.59809931]
[1731815617118,4.5635,219.13,219.06,9.59809931]
[1731815617323,9.59809931,219.14,219.06,9.59809931]
[1731815618488,14.16139931,219.14,219.07,4.5647]
[1731815618663,9.59809931,219.13,219.07,4.5647]
[1731815618953,14.23723768,219.16,219.07,4.5647]
[1731815619126,9.59809931,219.14,219.07,15.9765]
[1731815619751,18.80023768,219.16,219.08,25.50189931]
[1731815620043,14.16109931,219.16,219.08,25.50189931]
[1731815620967,4.563,219.16,219.09,4.5643]
[1731815621247,9.59809931,219.15,219.09,4.5643]
[1731815621926,4.563,219.16,219.09,4.5643]
[1731815622856,14.23723768,219.17,219.09,15.9751]
[1731815623063,14.16079931,219.17,219.1,9.59809931]
[1731815623359,14.16079931,219.17,219.09,15.9751]
[1731815623544,14.23723768,219.18,219.1,9.72358931]
[1731815623746,23.83533699,219.18,219.1,9.72358931]
[1731815624765,14.23723768,219.19,219.12,9.72358931]
[1731815624964,47.27371305,219.2,219.12,0.12549]
[1731815625173,9.59809931,219.19,219.11,25.57169931]
[1731815626044,14.16039931,219.19,219.11,25.57169931]
[1731815626847,4.5619,219.21,219.12,0.12549]
[1731815627054,9.59809931,219.17,219.11,15.9736]
[1731815627243,9.59809931,219.16,219.11,15.9736]
[1731815627567,9.59809931,219.17,219.11,15.9736]
[1731815627944,9.59809931,219.17,219.11,11.4097]
[1731815628278,14.16079931,219.17,219.11,11.4097]
[1731815628761,9.59809931,219.18,219.11,21.00779931]
[1731815629140,14.16039931,219.19,219.11,21.00779931]
[1731815629852,14.16039931,219.19,219.11,25.57169931]
[1731815630245,9.59809931,219.18,219.11,25.57169931]
[1731815631752,9.59809931,219.18,219.11,11.4097]
[1731815631753,9.59809931,219.17,219.11,11.4097]
[1731815632059,9.59809931,219.15,219.11,11.4097]
[1731815632359,9.59809931,219.18,219.12,0.12549]
[1731815633459,9.59809931,219.18,219.13,4.5635]
[1731815634472,9.59809931,219.14,219.11,11.4097]
[1731815634639,9.59809931,219.14,219.09,4.5641]
[1731815636562,9.59809931,219.15,219.09,4.5641]
[1731815637961,9.59809931,219.13,219.07,15.9762]
[1731815638171,9.59809931,219.14,219.07,25.57429931]
[1731815638538,18.79943768,219.19,219.1,0.09367462]
[1731815638745,9.59809931,219.21,219.14,9.59809931]
[1731815638959,14.23723768,219.22,219.17,0.12549]
[1731815639139,14.23723768,219.23,219.17,9.59809931]
[1731815639338,4.5613,219.24,219.17,9.59809931]
[1731815639553,23.83533699,219.25,219.18,0.12549]
[1731815639774,14.23723768,219.25,219.18,9.72358931]
[1731815639954,14.23723768,219.25,219.19,14.16029931]
[1731815640270,14.23723768,219.25,219.23,9.72358931]
[1731815640474,0.4691856,219.27,219.24,9.84907931]
[1731815640647,0.4691856,219.27,219.24,0.12549]
[1731815641015,0.4691856,219.27,219.24,9.72358931]
[1731815641475,0.4691856,219.27,219.24,17.98549]
[1731815642046,0.4691856,219.27,219.24,22.54659]
[1731815642252,0.4691856,219.27,219.23,30.35736829]
[1731815642455,10.06728491,219.27,219.23,30.35736829]
[1731815642755,0.4691856,219.27,219.24,0.12549]
[1731815643144,0.4691856,219.27,219.23,34.91876829]
[1731815643350,0.4691856,219.27,219.24,0.12549]
[1731815643555,0.4691856,219.27,219.26,9.72358931]
[1731815643854,0.4691856,219.27,219.26,0.12549]
[1731815644047,0.4691856,219.27,219.26,4.68619]
[1731815644780,0.4691856,219.27,219.23,34.91856829]
[1731815644961,0.4691856,219.27,219.24,0.12549]
[1731815646156,0.4691856,219.27,219.25,4.561]
[1731815646667,0.4691856,219.27,219.24,0.12549]
[1731815646884,10.06728491,219.27,219.23,18.95406829]
[1731815647053,9.59809931,219.25,219.2,4.5618]
[1731815647252,9.59809931,219.22,219.18,28.0957]
[1731815647473,9.59809931,219.19,219.18,28.0957]
[1731815647677,9.59809931,219.2,219.18,28.0957]
[1731815647975,9.59809931,219.2,219.17,6.7374]
[1731815648181,7.13943655,219.26,219.17,6.7374]
[1731815648475,7.13943655,219.26,219.17,18.1437]
[1731815648668,9.59809931,219.21,219.17,18.1437]
[1731815648873,9.59809931,219.19,219.17,18.1437]
[1731815649079,9.59809931,219.21,219.17,18.1437]
[1731815649561,9.59809931,219.21,219.17,22.7062]
[1731815649751,9.59809931,219.21,219.13,16.6899]
[1731815649956,9.59809931,219.21,219.13,27.16896921]
[1731815650177,9.59809931,219.21,219.13,38.57766921]
[1731815651474,9.59809931,219.21,219.15,4.563]
[1731815651883,9.59809931,219.19,219.15,4.563]
[1731815652576,7.13943655,219.23,219.16,0.25098]
[1731815652759,9.59809931,219.22,219.16,0.25098]
[1731815653782,9.59809931,219.22,219.15,0.09367462]
[1731815653989,9.59809931,219.22,219.18,0.12549]
[1731815654861,9.59809931,219.2,219.18,0.12549]
[1731815655070,9.59809931,219.22,219.18,0.12549]
[1731815655976,9.59809931,219.22,219.17,11.4066]
[1731815656177,9.59809931,219.2,219.16,6.34910254]
[1731815656367,9.59809931,219.18,219.08,15.8023]
[1731815656575,9.59809931,219.16,219.08,25.40039931]
[1731815657279,7.13943655,219.2,219.08,15.8023]
[1731815657456,9.59809931,219.14,219.1,0.12549]
[1731815658085,9.59809931,219.16,219.1,0.12549]
[1731815659592,9.59809931,219.16,219.1,4.68949]
[1731815659964,7.13943655,219.2,219.1,16.09979]
[1731815659965,9.59809931,219.18,219.1,16.09979]
[1731815660269,21.29943586,219.21,219.14,0.12549]
[1731815661093,14.15999931,219.21,219.14,0.12549]
[1731815661261,7.13943655,219.22,219.15,11.4077]
[1731815661470,7.13943655,219.22,219.16,0.25098]
[1731815662086,9.59809931,219.22,219.16,0.25098]
[1731815662865,9.59809931,219.22,219.17,4.5626]
[1731815662866,14.98314359,219.22,219.17,4.5626]
[1731815663067,14.98314359,219.22,219.15,11.4077]
[1731815663068,14.98314359,219.2,219.15,11.4077]
[1731815663274,14.98314359,219.2,219.12,19.54664359]
[1731815663773,14.98314359,219.2,219.12,30.95584359]
[1731815664382,7.13943655,219.22,219.19,0.09367462]
[1731815664685,7.13943655,219.23,219.19,23.99604862]
[1731815664981,7.13943655,219.23,219.21,0.12549]
[1731815666068,7.13943655,219.23,219.21,0.25098]
[1731815666882,7.13943655,219.25,219.22,4.5616]
[1731815669985,7.13943655,219.24,219.22,4.5616]
[1731815670565,7.13943655,219.24,219.23,24.027864]
[1731815670798,7.13943655,219.25,219.23,24.027864]
[1731815671890,7.13943655,219.25,219.24,4.68669]
[1731815672794,14.23723768,219.26,219.24,4.68669]
[1731815672982,14.23723768,219.26,219.25,0.21916462]
[1731815673193,56.95349341,219.32,219.28,23.902374]
[1731815673376,71.936637,219.32,219.27,6.4352]
[1731815673572,14.98314359,219.28,219.27,6.4352]
[1731815673773,14.98314359,219.28,219.24,15.9642]
[1731815673774,14.98314359,219.3,219.25,23.902374]
[1731815674479,14.98314359,219.3,219.26,4.5607]
[1731815676302,14.98314359,219.3,219.24,11.403]
[1731815676506,14.98314359,219.3,219.24,10.83843642]
[1731815677015,14.98314359,219.28,219.25,24.027864]
[1731815678411,14.98314359,219.28,219.24,10.83843642]
[1731815678709,14.98314359,219.27,219.24,15.39953642]
[1731815679107,14.98314359,219.26,219.24,15.39953642]
[1731815679284,14.98314359,219.28,219.24,15.39953642]
[1731815679484,14.98314359,219.28,219.25,24.027864]
[1731815681512,14.98314359,219.28,219.26,15.9626]
[1731815682413,14.98314359,219.28,219.26,11.4019]
[1731815682911,9.58358665,219.3,219.26,15.9626]
[1731815683290,4.5583,219.38,219.26,15.9626]
[1731815683596,9.58358665,219.3,219.26,11.4019]
[1731815683915,9.58358665,219.31,219.26,11.4019]
[1731815685108,9.58358665,219.28,219.26,11.4019]
[1731815685289,9.58358665,219.3,219.26,11.4019]
[1731815686110,9.58358665,219.3,219.27,28.462774]
[1731815687786,9.58358665,219.3,219.26,11.4019]
[1731815688009,4.5584,219.38,219.27,24.027864]
[1731815688212,42.94563697,219.48,219.35,0.25098]
[1731815688518,9.58358665,219.45,219.37,24.027864]
[1731815688812,4.5562,219.48,219.37,24.027864]
[1731815688991,4.5562,219.48,219.39,0.25098]
[1731815689390,0.5238408,219.49,219.43,0.25098]
[1731815689712,0.5238408,219.49,219.46,6.5404]
[1731815690515,0.5238408,219.49,219.47,0.25098]
[1731815690817,0.5238408,219.49,219.46,6.29138]
[1731815694713,0.5238408,219.49,219.44,14.94456151]
[1731815695017,0.5238408,219.49,219.42,14.94456151]
[1731815695227,14.94456151,219.46,219.41,6.6055]
[1731815695513,14.94456151,219.44,219.38,14.94456151]
[1731815695728,14.94456151,219.46,219.38,14.94456151]
[1731815696028,4.5564,219.47,219.4,14.94456151]
[1731815697216,5.0799408,219.49,219.42,14.94456151]
[1731815697820,0.5238408,219.49,219.44,14.94456151]
[1731815698121,0.5238408,219.49,219.46,14.94456151]
[1731815698903,4.5511,219.73,219.6,0.35098]
[1731815699117,15.0,219.79,219.66,0.22549]
[1731815699317,15.0,219.79,219.73,0.22549]
[1731815699526,15.0,219.79,219.78,7.31168]
[1731815699709,15.0,219.79,219.78,31.088564]
[1731815700427,15.0,219.79,219.78,46.03312551]
[1731815700629,15.0,219.79,219.78,60.47768702]
[1731815700799,7.7034,219.79,219.78,60.57136164]
[1731815701003,22.09669595,219.87,219.81,0.34465462]
[1731815701231,22.09669595,219.87,219.79,2.27387313]
[1731815701232,26.64479595,219.87,219.79,2.27387313]
[1731815701412,22.09669595,219.87,219.85,14.94456151]
[1731815702208,22.09669595,219.87,219.82,0.09367462]
[1731815702400,22.09669595,219.87,219.86,14.94456151]
[1731815702617,22.09669595,219.87,219.86,38.97242551]
[1731815702812,22.09669595,219.87,219.86,50.10854439]
[1731815703131,22.09669595,219.87,219.86,2.27365195]
[1731815703424,22.09669595,219.87,219.86,24.12153862]
[1731815703618,22.09669595,219.87,219.86,26.39519057]
[1731815704003,22.09669595,219.87,219.86,26.49519057]
[1731815704408,23.80702844,219.97,219.88,0.1]
[1731815704617,23.80702844,219.98,219.89,26.08068039]
[1731815704923,23.80702844,219.98,219.9,2.27365195]
[1731815705114,23.80702844,219.98,219.91,2.27365195]
[1731815705320,23.80702844,219.96,219.89,2.27365195]
[1731815705509,23.80702844,219.98,219.9,26.08068039]
[1731815705826,23.80702844,219.98,219.92,0.09367462]
[1731815706016,76.96672044,220.0,219.92,23.90070306]
[1731815706711,53.159692,220.0,219.92,48.02856706]
[1731815707508,53.159692,220.0,219.92,24.15168306]
[1731815707830,23.80702844,219.99,219.92,23.93251844]
[1731815708017,24.33086924,219.93,219.88,2.27275381]
[1731815708203,0.5238408,219.93,219.87,35.17732844]
[1731815708407,0.5238408,219.93,219.92,23.80702844]
[1731815708914,0.5238408,219.93,219.92,29.65186413]
[1731815709121,0.5238408,219.93,219.92,35.11804167]
[1731815710017,0.5238408,219.93,219.92,11.31101323]
[1731815710417,0.5238408,219.93,219.92,35.11804167]
[1731815710931,0.5238408,219.93,219.92,10.96635861]
[1731815711229,0.5238408,219.93,219.87,11.3703]
[1731815711734,0.5238408,219.93,219.87,21.39749714]
[1731815712026,0.5238408,219.93,219.92,23.80702844]
[1731815712229,0.5238408,219.93,219.92,18.70548783]
[1731815712441,0.5238408,219.93,219.92,7.0867368]
[1731815712947,0.5238408,219.93,219.92,7.30590142]
[1731815713247,0.5238408,219.93,219.92,12.86126323]
[1731815713429,0.5238408,219.93,219.92,17.90588579]
[1731815715042,0.5238408,219.93,219.92,41.68276979]
[1731815716542,0.5238408,219.93,219.92,17.90588579]
[1731815717654,0.5238408,219.93,219.92,41.68276979]
[1731815718552,0.5238408,219.93,219.92,42.59179952]
[1731815719047,0.5238408,219.93,219.92,41.68276979]
[1731815720127,0.5238408,219.93,219.92,65.48979823]
[1731815720524,0.5238408,219.93,219.92,65.58979823]
[1731815720836,0.5238408,219.93,219.92,42.59167566]
[1731815721024,0.5238408,219.93,219.92,59.93443642]
[1731815721436,0.5238408,219.93,219.92,65.34080378]
[1731815721626,0.5238408,219.93,219.92,42.54273417]
[1731815721822,0.5238408,219.93,219.92,65.78619873]
[1731815722145,0.5238408,219.93,219.92,60.74157617]
[1731815722825,0.5238408,219.93,219.92,65.41585762]
[1731815723629,0.2730408,219.93,219.92,41.70882918]
[1731815723819,0.2730408,219.93,219.92,64.63238879]
[1731815724246,0.2730408,219.93,219.92,65.54134727]
[1731815724449,0.2730408,219.93,219.92,65.64134727]
[1731815724633,0.2730408,219.93,219.92,65.54134727]
[1731815724837,0.2730408,219.93,219.92,56.60918965]
[1731815725347,0.2730408,219.93,219.92,41.83431883]
[1731815726932,0.2730408,219.93,219.92,41.73431883]
[1731815727247,0.2730408,219.93,219.92,56.60918965]
[1731815728038,0.2730408,219.93,219.92,26.17232519]
[1731815729245,0.2730408,219.93,219.92,26.26599981]
[1731815729930,0.2730408,219.93,219.92,52.56652443]
[1731815730445,0.2730408,219.93,219.92,52.47284981]
[1731815730749,0.2730408,219.93,219.91,1.58524064]
[1731815731079,0.2730408,219.93,219.92,17.14753899]
[1731815731551,0.2730408,219.93,219.92,23.6172649]
[1731815732448,0.05387264,219.93,219.92,23.6172649]
[1731815732858,0.05387264,219.93,219.92,40.92442299]
[1731815733235,0.05387264,219.93,219.92,47.21328]
[1731815734233,0.01148809,219.93,219.92,48.34968791]
[1731815734633,53.159692,220.0,219.96,0.34465462]
[1731815734929,53.159692,220.0,219.99,14.87487082]
[1731815735128,53.159692,220.0,219.99,18.2839469]
[1731815735328,53.159692,220.0,219.99,3.40907608]
[1731815736462,53.159692,220.0,219.99,18.2839469]
[1731815737947,53.159692,220.0,219.99,17.2839469]
[1731815739240,53.159692,220.0,219.99,2.40907608]
[1731815740136,53.159692,220.0,219.99,14.87487082]
[1731815740434,53.159692,220.0,219.99,32.07461402]
[1731815740754,53.159692,220.0,219.96,14.87487082]
[1731815741140,53.159692,220.0,219.96,20.19260187]
[1731815741441,53.159692,220.0,219.97,5.31773105]
[1731815741648,57.705192,220.0,219.97,5.31773105]
[1731815742237,57.705192,220.0,219.96,20.89888116]
[1731815742758,57.705192,220.0,219.98,14.87487082]
[1731815743067,53.159692,220.0,219.98,14.87487082]
[1731815743864,53.159692,220.0,219.99,14.87487082]
[1731815744151,32.71121052,220.0,219.99,14.87487082]
[1731815744360,32.71121052,220.0,219.98,5.85800181]
[1731815745062,32.71121052,220.0,219.96,6.02401034]
[1731815745961,32.71121052,220.0,219.96,25.97948499]
[1731815747438,32.71121052,220.0,219.96,19.95547465]
[1731815747965,32.71121052,220.0,219.96,25.53770166]
[1731815748446,32.71121052,220.0,219.97,5.58222701]
[1731815749968,2.78625,220.09,220.0,0.34465462]
[1731815750258,2.78625,220.09,220.08,15.12585082]
[1731815750457,2.78625,220.09,220.08,27.01595426]
[1731815752270,2.78625,220.09,220.08,41.89082508]
[1731815752476,2.78625,220.09,220.0,11.3633]
[1731815752759,2.78625,220.09,220.03,14.87487082]
[1731815753066,2.78625,220.09,220.05,14.87487082]
[1731815753741,7.32985,220.09,220.03,14.87487082]
[1731815753967,2.78625,220.09,220.05,14.87487082]
[1731815754143,2.78625,220.09,220.07,14.87487082]
[1731815754340,7.32985,220.09,220.05,6.2162659]
[1731815754535,25.0963,220.08,219.96,11.3653]
[1731815754737,0.5238408,220.15,220.06,0.1]
[1731815755370,0.5238408,220.15,220.09,0.09367462]
[1731815755657,0.5238408,220.15,220.14,14.96854544]
[1731815755857,0.5238408,220.15,220.14,15.21952544]
[1731815758148,0.5238408,220.15,220.14,0.34465462]
[1731815758344,0.5238408,220.15,220.14,21.76152375]
[1731815758852,0.5238408,220.15,220.14,30.28707484]
[1731815759052,0.5238408,220.15,220.14,34.82957484]
[1731815759254,0.5238408,220.15,220.14,34.92324946]
[1731815760255,0.5238408,220.15,220.14,35.17422946]
[1731815760462,0.5238408,220.15,220.14,30.28707484]
[1731815761166,0.5238408,220.15,220.14,23.74507653]
[1731815761351,0.5238408,220.15,220.14,23.83875115]
[1731815761556,0.5238408,220.15,220.14,24.08973115]
[1731815761749,0.5238408,220.15,220.14,0.34465462]
[1731815761949,0.5238408,220.15,220.14,24.08973115]
[1731815762649,0.5238408,220.15,220.13,6.46868559]
[1731815762843,0.5238408,220.15,220.14,23.74507653]
[1731815763562,0.5238408,220.15,220.14,23.83875115]
[1731815764157,0.5238408,220.15,220.14,0.34465462]
[1731815764346,0.5238408,220.15,220.14,23.74507653]
[1731815764977,0.5238408,220.15,220.14,23.83875115]
[1731815766156,0.5238408,220.15,220.14,23.74507653]
[1731815766567,0.5238408,220.15,220.14,23.83875115]
[1731815766768,0.5238408,220.15,220.14,28.38125115]
[1731815767451,0.5238408,220.15,220.14,28.50674115]
[1731815767666,0.5238408,220.15,220.14,23.74507653]
[1731815768047,0.5238408,220.15,220.12,15.9]
[1731815768048,0.5238408,220.15,220.13,23.74507653]
[1731815771257,0.5238408,220.15,220.14,4.88715462]
[1731815771565,4.5399,220.27,220.14,16.24355462]
[1731815771753,4.5403,220.25,220.16,24.08973115]
[1731815771950,21.60175,220.17,220.09,11.3586]
[1731815772172,2.78625,220.17,220.16,23.74507653]